bitfinex/quotes_SOLUSD_20220227
["timestamp","ask_amount","ask_price","bid_price","bid_amount"]
[1645970952333,7.92744828,89.53,89.41,111.8]
[1645970952533,10.67423749,89.53,89.411,0.25]
[1645970952833,7.92744828,89.53,89.412,111.8]
[1645970953033,2.74678921,89.529,89.413,112.05]
[1645970953233,6.25,89.528,89.413,111.8]
[1645970953434,6.25,89.528,89.414,0.25]
[1645970953634,2.74678921,89.527,89.44,16.7698]
[1645970953838,6.25,89.526,89.441,28.1570982]
[1645970954238,2.74678921,89.525,89.441,28.1570982]
[1645970954435,6.25,89.524,89.441,28.1570982]
[1645970954634,8.10278561,89.524,89.441,28.1570982]
[1645970954837,2.74678921,89.523,89.441,28.1570982]
[1645970955036,4.04605793,89.522,89.441,28.1570982]
[1645970955237,0.25,89.521,89.441,28.1570982]
[1645970955436,2.99678921,89.521,89.441,28.1570982]
[1645970955837,2.74678921,89.52,89.441,28.1570982]
[1645970957440,6.25,89.519,89.441,28.1570982]
[1645970957843,1.91682958,89.517,89.441,28.1570982]
[1645970958038,6.25,89.516,89.441,28.1570982]
[1645970958341,2.01292856,89.514,89.393,24.6846]
[1645970958538,4.471,89.513,89.393,24.6846]
[1645970958738,1.96495939,89.51,89.393,24.6846]
[1645970958940,1.73958294,89.507,89.393,24.6846]
[1645970959140,1.57641422,89.504,89.409,30.6590473]
[1645970959439,111.8,89.5,89.409,30.6590473]
[1645970959738,111.8,89.498,89.382,23.5859]
[1645970959939,111.8,89.498,89.35,55.9452]
[1645970959940,111.8,89.496,89.289,112.2]
[1645970960140,10.722,89.497,89.342,46.6708]
[1645970960141,1.48752806,89.493,89.342,46.6708]
[1645970960343,1.45,89.487,89.342,46.6708]
[1645970960541,16.7917,89.45,89.342,46.6708]
[1645970960744,8.58988063,89.484,89.343,35.98383421]
[1645970960939,6.25,89.483,89.343,35.98383421]
[1645970961139,8.28405733,89.483,89.344,8.13541058]
[1645970961340,11.03084654,89.483,89.346,2.89591033]
[1645970961547,4.49423548,89.482,89.348,111.8]
[1645970961743,6.25,89.481,89.35,111.8]
[1645970961939,10.88731791,89.481,89.38,16.7819]
[1645970962139,2.74678921,89.48,89.381,0.25]
[1645970962340,6.25,89.479,89.381,30.9756991]
[1645970962541,7.49669561,89.479,89.382,111.8]
[1645970962742,23.0796,89.491,89.383,0.25]
[1645970962941,23.0796,89.491,89.384,111.8]
[1645970962942,8.04425311,89.49,89.384,111.8]
[1645970963141,8.04425311,89.49,89.385,0.25]
[1645970963540,8.04425311,89.49,89.39,16.7789]
[1645970963742,10.79104232,89.49,89.391,0.25]
[1645970963941,0.25,89.489,89.391,0.25]
[1645970964344,2.74678921,89.488,89.391,0.25]
[1645970964642,6.25,89.487,89.391,0.25]
[1645970965041,8.99678921,89.487,89.39,16.7789]
[1645970966042,8.99678921,89.487,89.391,0.25]
[1645970966541,8.99678921,89.487,89.39,16.7789]
[1645970968142,8.99678921,89.487,89.381,77.6545991]
[1645970968143,111.8,89.479,89.381,30.7256991]
[1645970968349,114.04144466,89.477,89.381,30.7256991]
[1645970968543,1.70049385,89.474,89.381,30.7256991]
[1645970968743,122.522,89.473,89.381,30.7256991]
[1645970968944,1.5762043,89.472,89.381,30.7256991]
[1645970969145,2.03879519,89.47,89.381,30.7256991]
[1645970969346,2.03879519,89.47,89.35,16.7867]
[1645970969347,16.7878,89.46,89.35,16.7867]
[1645970969545,6.25,89.469,89.343,159.2905]
[1645970969546,111.8,89.458,89.343,159.2905]
[1645970969745,111.8,89.456,89.343,47.4905]
[1645970969945,111.8,89.454,89.343,47.4905]
[1645970970145,6.25,89.455,89.343,47.4905]
[1645970970146,111.8,89.452,89.343,47.4905]
[1645970970350,6.25,89.451,89.344,142.40414376]
[1645970970547,6.0,89.451,89.345,2.40548284]
[1645970970846,1.82902052,89.488,89.347,2.29773569]
[1645970971046,2.74678921,89.476,89.349,111.8]
[1645970971252,6.0,89.475,89.38,16.7804]
[1645970971446,6.0,89.475,89.381,29.42241293]
[1645970971648,111.8,89.474,89.381,29.17241293]
[1645970971851,118.05,89.473,89.381,29.17241293]
[1645970972048,1.72503196,89.472,89.381,29.17241293]
[1645970972247,6.25,89.471,89.381,29.17241293]
[1645970972448,6.449139,89.47,89.381,29.17241293]
[1645970972649,7.85764858,89.469,89.381,29.17241293]
[1645970972847,4.473,89.468,89.381,29.17241293]
[1645970973047,1.74688182,89.467,89.381,29.17241293]
[1645970973247,6.25,89.466,89.382,0.25]
[1645970973855,7.83066095,89.467,89.391,111.8]
[1645970974050,1.65682011,89.466,89.392,0.25]
[1645970974252,2.74678921,89.483,89.392,0.25]
[1645970974453,7.77557043,89.487,89.392,0.25]
[1645970975248,7.77557043,89.487,89.383,111.8]
[1645970975249,0.25,89.486,89.384,0.25]
[1645970975651,1.54903398,89.522,89.411,111.8]
[1645970975851,72.9319,89.606,89.414,2.41106686]
[1645970975852,4.471,89.564,89.414,2.41106686]
[1645970976052,4.469,89.586,89.417,2.8004873]
[1645970976249,1.96793846,89.591,89.415,6.25]
[1645970976250,1.96793846,89.591,89.422,66.74]
[1645970976451,4.468,89.59,89.427,111.8]
[1645970976653,4.468,89.59,89.428,2.5296877]
[1645970976850,111.8,89.588,89.431,111.8]
[1645970977054,16.7663,89.58,89.46,16.7663]
[1645970977251,1.62060837,89.579,89.462,26.42468645]
[1645970977454,1.62060837,89.579,89.463,0.25]
[1645970977455,6.0,89.578,89.463,0.25]
[1645970978053,6.0,89.578,89.462,26.42468645]
[1645970978054,2.04662104,89.576,89.462,26.42468645]
[1645970978254,112.2,89.56,89.462,26.42468645]
[1645970978454,1.57488015,89.558,89.462,26.42468645]
[1645970978655,1.77764493,89.555,89.462,26.42468645]
[1645970978954,20.48095211,89.552,89.462,26.42468645]
[1645970979153,7.87917252,89.551,89.462,26.42468645]
[1645970979558,18.26916667,89.55,89.44,16.7703]
[1645970979755,1.58015447,89.548,89.44,16.7703]
[1645970979954,6.25,89.547,89.44,16.7703]
[1645970980554,6.25,89.547,89.441,27.21346577]
[1645970980955,6.25,89.547,89.442,0.25]
[1645970983255,1.81365867,89.545,89.441,27.21346577]
[1645970983457,6.25,89.544,89.441,27.21346577]
[1645970983954,0.25,89.544,89.441,27.21346577]
[1645970984356,8.1021832,89.548,89.441,27.21346577]
[1645970984554,1.58875962,89.539,89.441,27.21346577]
[1645970984758,5.49187561,89.537,89.441,27.21346577]
[1645970984954,7.95757209,89.536,89.441,27.21346577]
[1645970985857,111.8,89.535,89.441,27.21346577]
[1645970986056,2.00185924,89.528,89.441,27.21346577]
[1645970986256,6.25,89.527,89.441,27.21346577]
[1645970987860,6.25,89.527,89.442,0.25]
[1645970988061,0.25,89.527,89.442,112.05]
[1645970988262,0.25,89.534,89.442,0.25]
[1645970988662,6.0,89.535,89.442,0.25]
[1645970989866,0.25,89.534,89.442,0.25]
[1645970991266,0.25,89.534,89.442,112.05]
[1645970991470,1.65202347,89.543,89.442,112.05]
[1645970991666,6.0,89.542,89.444,111.8]
[1645970991869,6.0,89.557,89.446,111.8]
[1645970992069,20.18186668,89.556,89.448,111.8]
[1645970992267,7.9226898,89.555,89.449,0.25]
[1645970992470,7.9226898,89.555,89.45,16.7684]
[1645970992667,7.9226898,89.555,89.451,112.05]
[1645970992870,0.25,89.554,89.451,112.05]
[1645970993275,0.25,89.554,89.451,111.8]
[1645970993476,0.25,89.554,89.46,16.7662]
[1645970993676,0.25,89.554,89.461,31.61840155]
[1645970994481,0.25,89.554,89.462,0.25]
[1645970994780,0.25,89.554,89.462,112.05]
[1645970995083,0.25,89.554,89.47,16.7649]
[1645970995690,1.83837919,89.569,89.471,111.8]
[1645970995892,1.68700594,89.591,89.473,111.8]
[1645970996092,1.68700594,89.591,89.501,111.8]
[1645970996292,1.84283888,89.589,89.501,111.8]
[1645970996492,1.84283888,89.589,89.503,111.8]
[1645970996691,20.53227847,89.593,89.505,111.8]
[1645970996892,7.92938688,89.592,89.506,0.25]
[1645970997194,7.92938688,89.592,89.504,31.28624951]
[1645970997392,7.92938688,89.592,89.505,0.25]
[1645970997793,0.25,89.591,89.505,0.25]
[1645970999393,0.25,89.591,89.511,111.8]
[1645970999593,0.25,89.608,89.513,111.8]
[1645970999793,1.64510017,89.622,89.514,0.25]
[1645970999794,7.64510017,89.622,89.514,0.25]
[1645970999996,1.45,89.677,89.514,0.25]
[1645970999997,21.23758084,89.645,89.516,66.74]
[1645971000200,1.85167111,89.644,89.517,114.91251857]
[1645971000395,1.85167111,89.644,89.521,111.8]
[1645971000396,6.93306271,89.643,89.521,111.8]
[1645971000596,6.93306271,89.643,89.523,111.8]
[1645971000796,14.67772439,89.642,89.525,111.8]
[1645971000997,7.94691586,89.641,89.527,111.8]
[1645971001199,7.94691586,89.641,89.529,111.8]
[1645971001499,6.0,89.641,89.533,113.9996638]
[1645971001702,6.0,89.677,89.538,2.38462122]
[1645971001898,6.0,89.677,89.541,2.42902195]
[1645971002099,1.67708529,89.675,89.544,2.90627812]
[1645971002297,6.0,89.674,89.546,111.8]
[1645971002498,6.0,89.674,89.551,111.8]
[1645971002700,6.0,89.674,89.553,111.8]
[1645971002701,38.52335577,89.673,89.553,111.8]
[1645971002897,8.00728101,89.672,89.547,23.478]
[1645971003097,111.8,89.671,89.547,23.478]
[1645971003297,111.8,89.669,89.547,23.478]
[1645971003497,8.27369737,89.668,89.547,23.478]
[1645971003699,22.94809958,89.668,89.547,23.478]
[1645971003897,25.60570094,89.667,89.547,23.478]
[1645971004097,7.94796077,89.666,89.547,23.478]
[1645971004299,116.263,89.665,89.547,23.478]
[1645971004498,16.7509,89.65,89.55,16.7493]
[1645971004697,13.77634027,89.649,89.551,0.25]
[1645971004898,1.50906922,89.648,89.551,0.25]
[1645971005100,6.25,89.647,89.551,0.25]
[1645971005403,6.25,89.647,89.55,111.8]
[1645971005602,0.25,89.647,89.561,111.8]
[1645971005800,0.25,89.647,89.563,111.8]
[1645971005999,6.0,89.682,89.565,111.8]
[1645971006198,6.0,89.682,89.564,6.25]
[1645971006199,6.0,89.682,89.567,111.8]
[1645971006399,1.49503427,89.683,89.569,111.8]
[1645971006599,14.6351326,89.681,89.581,111.8]
[1645971006801,1.54355405,89.68,89.583,111.8]
[1645971007002,1.54355405,89.68,89.585,111.8]
[1645971007201,0.25,89.679,89.587,111.8]
[1645971007399,1.54355405,89.68,89.589,111.8]
[1645971007600,1.98956799,89.697,89.591,111.8]
[1645971007803,6.0,89.696,89.592,0.25]
[1645971008004,23.84895356,89.691,89.592,0.25]
[1645971008201,7.75196793,89.69,89.592,0.25]
[1645971008405,7.75196793,89.69,89.592,6.25]
[1645971008605,1.75196793,89.69,89.593,111.8]
[1645971008806,1.94815662,89.715,89.595,111.8]
[1645971009003,7.94815662,89.715,89.597,111.8]
[1645971009202,24.01954114,89.714,89.599,111.8]
[1645971009404,7.84983055,89.713,89.611,111.8]
[1645971009604,1.84983055,89.713,89.613,111.8]
[1645971009803,1.84983055,89.713,89.615,111.8]
[1645971010004,1.84983055,89.713,89.616,6.25]
[1645971010608,1.84983055,89.713,89.621,111.8]
[1645971010804,1.84983055,89.713,89.62,16.7346]
[1645971010805,1.81145851,89.733,89.623,111.8]
[1645971011005,1.68286133,89.759,89.625,111.8]
[1645971011206,1.68286133,89.759,89.624,26.77721375]
[1645971011207,1.68286133,89.759,89.627,111.8]
[1645971011407,44.88346839,89.78,89.629,111.8]
[1645971011608,44.88346839,89.78,89.631,111.8]
[1645971011904,47.101,89.783,89.641,33.8443591]
[1645971011905,20.173797,89.778,89.641,33.8443591]
[1645971012105,7.65099288,89.777,89.642,0.25]
[1645971012311,6.08413235,89.776,89.642,0.25]
[1645971012604,22.39404353,89.775,89.642,0.25]
[1645971012804,1.60952284,89.774,89.642,23.3889]
[1645971013005,10.708,89.773,89.642,23.3889]
[1645971013206,1.62066212,89.772,89.642,23.1389]
[1645971013507,16.7267,89.77,89.642,23.1389]
[1645971013706,7.89290166,89.769,89.642,23.1389]
[1645971013904,7.89290166,89.769,89.643,8.22196705]
[1645971014105,6.0,89.769,89.644,111.8]
[1645971014306,7.91874863,89.777,89.646,111.8]
[1645971014506,7.91874863,89.777,89.648,111.8]
[1645971014707,6.0,89.777,89.651,114.68179622]
[1645971014906,6.0,89.788,89.653,111.8]
[1645971015106,6.0,89.797,89.655,111.8]
[1645971015307,1.50121668,89.81,89.659,178.54]
[1645971015505,4.458,89.825,89.683,5.0]
[1645971015708,22.04269185,89.834,89.683,5.0]
[1645971015709,1.97891679,89.833,89.72,16.7118]
[1645971015907,14.49645945,89.832,89.721,37.86488727]
[1645971016107,14.49645945,89.832,89.721,31.86488727]
[1645971016108,1.99786455,89.831,89.721,31.86488727]
[1645971016809,1.99786455,89.831,89.73,16.7124]
[1645971017007,1.61462786,89.852,89.731,6.25]
[1645971017213,1.61462786,89.852,89.731,0.25]
[1645971017409,1.61462786,89.852,89.732,111.8]
[1645971017609,21.34954003,89.851,89.736,111.8]
[1645971017810,1.64835413,89.85,89.737,0.25]
[1645971018010,6.0,89.849,89.737,0.25]
[1645971018212,0.25,89.848,89.737,0.25]
[1645971019210,6.0,89.849,89.736,6.25]
[1645971019415,16.7142,89.84,89.736,0.25]
[1645971019613,8.01590505,89.839,89.736,0.25]
[1645971019813,27.6822869,89.839,89.736,0.25]
[1645971020012,1.83943525,89.838,89.736,0.25]
[1645971020215,2.87398899,89.836,89.736,0.25]
[1645971020414,6.25,89.835,89.736,0.25]
[1645971020717,6.25,89.835,89.735,33.06558171]
[1645971020914,6.25631321,89.834,89.735,33.06558171]
[1645971021114,16.7171,89.83,89.735,33.06558171]
[1645971021315,6.25,89.829,89.735,33.06558171]
[1645971021517,6.30693047,89.828,89.735,33.06558171]
[1645971021742,6.25,89.827,89.735,33.06558171]
[1645971021917,118.28711427,89.826,89.723,23.8679]
[1645971022117,111.8,89.824,89.724,0.25]
[1645971022317,111.8,89.822,89.724,0.25]
[1645971022516,12.22612138,89.821,89.724,0.25]
[1645971022716,1.62415574,89.82,89.724,0.25]
[1645971022916,16.7213,89.8,89.724,31.03300437]
[1645971023117,8.08853204,89.799,89.724,31.03300437]
[1645971023324,1.54835268,89.818,89.725,111.8]
[1645971023517,1.90023198,89.831,89.726,0.25]
[1645971023717,1.91252514,89.851,89.726,0.25]
[1645971024121,39.62208869,89.85,89.726,0.25]
[1645971024317,6.42749868,89.849,89.726,0.25]
[1645971024718,29.44205468,89.848,89.725,2.74822523]
[1645971024917,1.91100765,89.847,89.725,0.25]
[1645971025117,6.25,89.846,89.725,0.25]
[1645971025318,16.7142,89.84,89.725,0.25]
[1645971025518,1.61440831,89.838,89.725,0.25]
[1645971025716,6.25,89.837,89.725,0.25]
[1645971025920,1.31314033,89.835,89.725,0.25]
[1645971026118,10.705,89.834,89.725,0.25]
[1645971026319,1.58814523,89.833,89.725,0.25]
[1645971026519,1.48524153,89.831,89.725,0.25]
[1645971026718,10.705,89.83,89.725,0.25]
[1645971026919,1.5384774,89.819,89.725,0.25]
[1645971027122,6.25,89.818,89.725,0.25]
[1645971027719,6.25,89.818,89.724,30.78300437]
[1645971028020,6.0,89.818,89.724,30.78300437]
[1645971028421,2.74678921,89.846,89.726,2.93968051]
[1645971028422,6.0,89.838,89.726,2.93968051]
[1645971028619,6.0,89.844,89.727,6.0]
[1645971028820,7.60768096,89.851,89.727,6.0]
[1645971029244,7.60768096,89.851,89.728,0.25]
[1645971029422,0.25,89.85,89.727,0.25]
[1645971029620,0.25,89.85,89.728,2.74678921]
[1645971029821,7.60768096,89.851,89.729,6.25]
[1645971030423,1.6281155,89.849,89.73,6.0]
[1645971030625,6.0,89.848,89.731,0.25]
[1645971030824,6.0,89.848,89.731,6.25]
[1645971031225,0.25,89.847,89.731,6.25]
[1645971031428,114.79678921,89.847,89.724,30.78300437]
[1645971031630,112.2,89.817,89.724,30.78300437]
[1645971031826,5.04224985,89.815,89.724,30.78300437]
[1645971032031,1.5864691,89.813,89.724,30.78300437]
[1645971032225,6.25,89.812,89.724,30.78300437]
[1645971032427,8.99678921,89.812,89.724,30.78300437]
[1645971032826,2.74678921,89.811,89.724,30.78300437]
[1645971033029,7.84234788,89.81,89.724,30.78300437]
[1645971033225,6.25004573,89.809,89.724,30.78300437]
[1645971033428,8.04479485,89.808,89.724,30.78300437]
[1645971033628,20.66778012,89.799,89.725,0.25]
[1645971033827,7.76932197,89.798,89.725,0.25]
[1645971034027,6.0,89.798,89.725,112.05]
[1645971034427,6.0,89.824,89.725,112.05]
[1645971034631,7.5905824,89.838,89.725,112.05]
[1645971034829,17.42578319,89.837,89.725,112.05]
[1645971035030,6.0,89.836,89.725,112.05]
[1645971035230,1.8517243,89.829,89.725,112.05]
[1645971035430,6.25,89.828,89.725,112.05]
[1645971035631,8.99678921,89.828,89.725,112.05]
[1645971035833,8.99678921,89.828,89.725,111.8]
[1645971036031,2.74678921,89.827,89.724,30.78300437]
[1645971036234,6.25,89.826,89.724,30.78300437]
[1645971036432,10.705,89.826,89.724,30.78300437]
[1645971036633,4.31473945,89.825,89.724,30.78300437]
[1645971036850,16.7175,89.82,89.724,30.78300437]
[1645971037051,9.07260739,89.819,89.706,23.356]
[1645971037251,10.456,89.818,89.707,0.25]
[1645971037450,0.25,89.817,89.706,23.356]
[1645971037651,4.456,89.816,89.706,23.356]
[1645971037850,8.22655553,89.815,89.706,23.356]
[1645971038051,8.22655553,89.815,89.707,27.63500985]
[1645971038253,2.74678921,89.814,89.707,27.63500985]
[1645971038452,111.8,89.809,89.707,27.63500985]
[1645971038652,113.46678492,89.807,89.707,27.63500985]
[1645971038855,1.66478022,89.804,89.686,24.562]
[1645971039053,10.707,89.803,89.686,24.562]
[1645971039254,6.0,89.803,89.686,24.562]
[1645971039453,0.25,89.802,89.691,111.8]
[1645971039855,0.25,89.802,89.693,111.8]
[1645971040056,0.25,89.802,89.695,111.8]
[1645971040257,0.25,89.802,89.697,111.8]
[1645971040458,7.56398583,89.817,89.699,111.8]
[1645971040659,1.94063866,89.815,89.711,111.8]
[1645971040859,6.0,89.814,89.713,111.8]
[1645971041059,6.0,89.814,89.714,27.83165949]
[1645971041261,16.7192,89.81,89.714,27.83165949]
[1645971041466,7.93792486,89.809,89.714,27.83165949]
[1645971041662,7.93792486,89.809,89.714,27.58165949]
[1645971041863,1.89896202,89.808,89.714,27.58165949]
[1645971042060,6.0,89.807,89.714,27.58165949]
[1645971042261,0.25,89.806,89.714,27.58165949]
[1645971042761,3.0027551,89.799,89.714,27.58165949]
[1645971042963,6.25,89.798,89.715,0.25]
[1645971043968,0.25,89.798,89.715,0.25]
[1645971044164,0.25,89.815,89.715,0.25]
[1645971044367,1.80751853,89.814,89.714,27.58165949]
[1645971044566,6.25,89.813,89.714,27.58165949]
[1645971044766,1.36855554,89.799,89.715,0.25]
[1645971044967,6.25,89.798,89.714,27.58165949]
[1645971045367,2.74678921,89.797,89.714,27.58165949]
[1645971045567,6.25,89.796,89.714,27.58165949]
[1645971046569,1.64022461,89.789,89.714,27.58165949]
[1645971046768,6.25,89.788,89.714,27.58165949]
[1645971047170,6.25,89.788,89.65,55.7473]
[1645971047171,2.74678921,89.787,89.65,55.7473]
[1645971047367,2.74678921,89.787,89.658,23.2705]
[1645971047368,6.25,89.786,89.658,23.2705]
[1645971047570,6.25,89.786,89.659,112.05]
[1645971047571,1.88801607,89.785,89.659,112.05]
[1645971047767,1.55308832,89.779,89.659,112.05]
[1645971047968,6.0,89.778,89.661,111.8]
[1645971048168,1.68256382,89.776,89.663,111.8]
[1645971048368,7.5101116,89.775,89.663,111.8]
[1645971048768,7.5101116,89.775,89.662,35.65469047]
[1645971048769,16.7266,89.77,89.662,35.65469047]
[1645971048969,7.76856397,89.769,89.662,35.65469047]
[1645971049177,6.25,89.769,89.663,111.8]
[1645971049369,2.99678921,89.769,89.663,111.8]
[1645971049570,6.0,89.768,89.663,111.8]
[1645971049770,0.25,89.767,89.663,111.8]
[1645971049970,2.99678921,89.767,89.663,111.8]
[1645971050175,6.0,89.766,89.663,111.8]
[1645971050371,0.25,89.765,89.664,0.25]
[1645971050672,2.87821764,89.759,89.664,0.25]
[1645971050872,6.25,89.758,89.664,0.25]
[1645971051073,8.99678921,89.758,89.664,0.25]
[1645971051273,10.71877861,89.758,89.663,111.8]
[1645971051479,2.74678921,89.757,89.663,111.8]
[1645971051677,6.25,89.756,89.663,111.8]
[1645971052575,16.7305,89.75,89.662,35.65469047]
[1645971052774,8.27383394,89.749,89.663,0.25]
[1645971052974,1.79134945,89.747,89.616,75.6266]
[1645971053176,111.8,89.745,89.618,22.6987]
[1645971053377,1.91869416,89.743,89.618,22.6987]
[1645971053576,6.25,89.742,89.619,111.8]
[1645971053778,8.99678921,89.742,89.619,111.8]
[1645971053976,18.44220027,89.74,89.621,111.8]
[1645971054181,53.4817,89.739,89.621,111.8]
[1645971054379,1.97134809,89.738,89.623,111.8]
[1645971054579,6.25,89.737,89.625,111.8]
[1645971054781,6.25,89.737,89.627,111.8]
[1645971054978,6.25,89.737,89.629,111.8]
[1645971055177,6.25,89.737,89.631,111.8]
[1645971055378,6.25,89.737,89.633,111.8]
[1645971055580,6.25,89.737,89.635,111.8]
[1645971055778,6.25,89.737,89.636,0.25]
[1645971056178,2.74678921,89.736,89.636,0.25]
[1645971056379,6.25,89.735,89.636,0.25]
[1645971056681,2.74678921,89.734,89.636,0.25]
[1645971056879,6.25,89.733,89.636,0.25]
[1645971057482,16.7343,89.73,89.635,111.8]
[1645971057680,8.25231197,89.729,89.635,111.8]
[1645971058081,10.99910118,89.729,89.635,111.8]
[1645971058380,10.99910118,89.729,89.634,32.60473848]
[1645971058981,10.99910118,89.729,89.635,0.25]
[1645971059383,10.99910118,89.729,89.635,112.05]
[1645971060085,2.74678921,89.728,89.635,112.05]
[1645971060286,6.25,89.727,89.635,112.05]
[1645971060686,2.74678921,89.726,89.635,112.05]
[1645971060887,6.25,89.725,89.635,112.05]
[1645971061389,1.90078429,89.723,89.635,112.05]
[1645971061588,6.25,89.722,89.635,112.05]
[1645971061792,8.99678921,89.722,89.635,112.05]
[1645971061985,2.74678921,89.721,89.635,112.05]
[1645971062187,6.25,89.72,89.635,112.05]
[1645971062587,2.74678921,89.719,89.635,112.05]
[1645971062786,6.25,89.718,89.635,112.05]
[1645971063204,2.74678921,89.717,89.635,112.05]
[1645971063405,6.25,89.716,89.635,0.25]
[1645971063806,8.99678921,89.716,89.635,0.25]
[1645971064006,8.99678921,89.716,89.59,78.7131]
[1645971064007,111.8,89.715,89.59,22.9246]
[1645971064207,7.82004419,89.714,89.59,22.9246]
[1645971064412,4.711,89.713,89.591,111.8]
[1645971064608,4.711,89.713,89.592,135.7702]
[1645971064609,6.0,89.712,89.592,135.7702]
[1645971064808,4.711,89.711,89.617,35.72168738]
[1645971065011,7.72965466,89.71,89.617,35.72168738]
[1645971065208,0.25,89.709,89.617,35.72168738]
[1645971065419,16.7419,89.69,89.617,35.72168738]
[1645971065609,29.73007129,89.689,89.617,35.72168738]
[1645971065813,1.53806681,89.688,89.617,35.72168738]
[1645971066010,6.25,89.687,89.617,35.72168738]
[1645971066209,8.99678921,89.687,89.617,35.72168738]
[1645971066810,8.99678921,89.687,89.613,16.4497]
[1645971067014,2.74678921,89.686,89.592,135.7702]
[1645971067311,16.7436,89.68,89.592,135.7702]
[1645971067510,8.07736353,89.679,89.592,135.7702]
[1645971067911,8.99678921,89.679,89.54,548.95623334]
[1645971068111,16.7458,89.67,89.54,548.95623334]
[1645971068316,1.80208566,89.668,89.543,49.7327]
[1645971068612,163.1247,89.669,89.543,49.7327]
[1645971068613,1.59312092,89.665,89.543,49.7327]
[1645971068811,111.8,89.663,89.544,29.28945856]
[1645971069012,111.8,89.661,89.544,29.28945856]
[1645971069212,111.8,89.659,89.544,29.28945856]
[1645971069411,111.8,89.657,89.544,29.28945856]
[1645971069615,1.56805238,89.654,89.544,29.28945856]
[1645971069812,1.98325215,89.651,89.544,29.28945856]
[1645971070114,23.24639774,89.649,89.545,0.25]
[1645971070314,12.66748143,89.648,89.545,0.25]
[1645971070523,16.7518,89.64,89.545,0.25]
[1645971070713,12.72031702,89.639,89.545,0.25]
[1645971070915,1.83089166,89.638,89.545,0.25]
[1645971071214,1.66761698,89.636,89.545,0.25]
[1645971071416,2.66102126,89.634,89.545,0.25]
[1645971071714,16.7529,89.63,89.545,111.8]
[1645971071914,1.88753537,89.629,89.547,111.8]
[1645971072116,1.88753537,89.629,89.549,111.8]
[1645971072117,0.25,89.629,89.549,111.8]
[1645971072314,0.25,89.629,89.551,111.8]
[1645971072915,2.17999493,89.65,89.553,111.8]
[1645971073115,8.17999493,89.65,89.554,0.25]
[1645971073615,7.92999493,89.65,89.554,2.99678921]
[1645971073816,7.92999493,89.65,89.554,0.25]
[1645971074215,7.92999493,89.65,89.549,111.8]
[1645971074414,7.92999493,89.65,89.55,0.25]
[1645971074815,0.25,89.649,89.55,0.25]
[1645971075215,0.25,89.649,89.551,111.8]
[1645971075415,0.25,89.649,89.552,0.25]
[1645971075615,0.25,89.649,89.553,111.8]
[1645971075817,6.25,89.667,89.555,111.8]
[1645971076015,6.25,89.667,89.557,111.8]
[1645971076216,21.25597455,89.666,89.561,111.8]
[1645971076415,21.25597455,89.666,89.56,31.02803657]
[1645971076416,8.24292905,89.665,89.581,111.8]
[1645971076616,8.24292905,89.665,89.583,111.8]
[1645971076815,8.24292905,89.665,89.584,0.25]
[1645971077015,6.0,89.665,89.584,0.25]
[1645971077218,6.0,89.686,89.585,2.74678921]
[1645971077417,6.0,89.685,89.591,111.8]
[1645971077616,6.0,89.714,89.593,111.8]
[1645971077815,22.46377788,89.713,89.595,111.8]
[1645971078018,7.84757574,89.712,89.597,111.8]